[Event "Niedersachsen-ch B 2024"]
[Site "Verden Aller"]
[Date "2024.01.04"]
[Round "2.9"]
[White "Junge, Julia Marie"]
[Black "Leppert, Hans-Juergen"]
[Result "1-0"]
[ECO "B42"]
[WhiteElo "1401"]
[BlackElo "1683"]
[Annotator "NA RC"]
[PlyCount "79"]
[EventDate "2024.01.01"]
[EventType "swiss"]
[EventCountry "GER"]
[SourceTitle "playchess.com"]
[Source "ChessBase"]
[SourceQuality "1"]
[TimeControl "40/5400+30:1800+30"]

1. e4 {[%emt 0:00:08]} c5 {[%emt 0:00:11]} 2. Nf3 {[%emt 0:00:43]} e6 {[%emt 0:00:10]} 3. d4 {[%emt 0:01:27]} cxd4 {[%emt 0:00:10]} 4. Nxd4 {[%emt 0:00:08]} a6 {[%emt 0:00:07]} 5. Be3 {[%emt 0:02:12]} Nf6 {[%emt 0:00:22]} 6. Bd3 {[%emt 0:01:11]} Qc7 {[%emt 0:00:59]} 7. O-O {[%emt 0:02:48]} Bc5 {[%emt 0:01:48]} 8. Qe2 {[%emt 0:02:57]} b5 {[%emt 0:02:00]} 9. a3 {[%emt 0:02:10]} Bb7 {[%emt 0:00:24]} 10. Nb3 {[%emt 0:02:09]} Bd6 {[%emt 0:02:13]} 11. h3 {[%emt 0:08:05]} O-O {[%emt 0:00:40]} 12. Bg5 {[%emt 0:04:47]} Be7 {[%emt 0:02:37]} 13. Nc3 {[%emt 0:08:29]} d6 {[%emt 0:00:36]} 14. Rae1 {[%emt 0:09:46]} Nbd7 {[%emt 0:01:03]} 15. f4 {[%emt 0:05:13]} Nc5 {[%emt 0:03:21]} 16. e5 {[%emt 0:04:34]} Nd5 {[%emt 0:01:06]} 17. Bxe7 {[%emt 0:02:01]} Qxe7 {[%emt 0:00:55]} 18. Nxd5 {[%emt 0:01:19]} Bxd5 {[%emt 0:00:18]} 19. Nxc5 {[%emt 0:00:33]} dxc5 {[%emt 0:00:27]} 20. Be4 {[%emt 0:01:00]} Bc4 {[%emt 0:01:55]} 21. Qf3 {[%emt 0:04:04]} Rad8 {[%emt 0:01:48]} 22. Rf2 {[%emt 0:00:10]} Rd7 {[%emt 0:02:29]} 23. b3 {[%emt 0:01:37]} Bd5 {[%emt 0:00:22]} 24. Bxd5 {[%emt 0:01:02]} Rxd5 {[%emt 0:00:19]} 25. f5 {[%emt 0:00:24]} Qd8 {[%emt 0:06:24]} 26. f6 {[%emt 0:01:05]} gxf6 {[%emt 0:01:15]} 27. exf6 {[%emt 0:02:01]} Kh8 {[%emt 0:01:18]} 28. Re4 {[%emt 0:02:59]} Rd1+ {[%emt 0:08:51]} 29. Rf1 {[%emt 0:03:59]} Rxf1+ {[%emt 0:00:20]} 30. Qxf1 {[%emt 0:00:56]} Rg8 {[%emt 0:00:12]} 31. c3 {[%emt 0:06:51]} Rg6 {[%emt 0:00:11]} 32. Rf4 {[%emt 0:00:17]} Qd2 {[%emt 0:01:17]} 33. Qf3 {[%emt 0:01:59]} h6 {[%emt 0:04:56]} 34. Re4 {[%emt 0:03:33]} Qc1+ {[%emt 0:05:09]} 35. Kh2 {[%emt 0:00:07]} Qg5 {[%emt 0:01:45]} 36. Rf4 {[%emt 0:03:15]} Qe5 {[%emt 0:00:21]} 37. Kh1 {[%emt 0:03:09]} Kh7 {[%emt 0:01:00]} 38. h4 {[%emt 0:02:04]} a5 {[%emt 0:00:36]} 39. h5 {[%emt 0:00:28]} Qxh5+ {[%emt 0:00:14]} 40. Qxh5 {[%emt 0:00:09]} 1-0

[Event "Niedersachsen-ch B 2024"]
[Site "Verden Aller"]
[Date "2024.01.04"]
[Round "2.10"]
[White "Frese, Immo"]
[Black "Pac, Maksym"]
[Result "0-1"]
[ECO "A85"]
[WhiteElo "1642"]
[BlackElo "1416"]
[Annotator "NA RC"]
[PlyCount "68"]
[EventDate "2024.01.01"]
[EventType "swiss"]
[EventCountry "GER"]
[SourceTitle "playchess.com"]
[Source "ChessBase"]
[SourceQuality "1"]
[TimeControl "40/5400+30:1800+30"]

1. d4 {[%emt 0:00:30]} d5 {[%emt 0:00:03]} 2. c4 {[%emt 0:00:00]} e6 {[%emt 0:00:05]} 3. Nc3 {[%emt 0:00:02]} c6 {[%emt 0:00:03]} 4. e3 {[%emt 0:00:32]} f5 {[%emt 0:00:11]} 5. Nf3 {[%emt 1:31:56]} Nf6 6. Bd3 {[%emt 0:00:00]} Bd6 {[%emt 0:00:10]} 7. O-O {[%emt 0:00:00]} O-O {[%emt 0:00:04]} 8. b3 {[%emt 0:00:00]} Nbd7 {[%emt 0:01:57]} 9. Bb2 {[%emt 0:00:00]} Ne4 {[%emt 0:00:13]} 10. Ne2 {[%emt 0:00:00]} Qf6 {[%emt 0:03:38]} 11. Rc1 {[%emt 0:00:00]} g5 {[%emt 0:02:34]} 12. Nd2 {[%emt 0:00:00]} g4 {[%emt 0:02:19]} 13. Nf4 {[%emt 0:00:00]} Bxf4 {[%emt 0:01:23]} 14. exf4 {[%emt 0:00:00]} Qh4 {[%emt 0:03:14]} 15. g3 {[%emt 0:00:00]} Qh3 {[%emt 0:03:35]} 16. Re1 {[%emt 0:00:00]} Rf6 {[%emt 0:03:06]} 17. Bf1 {[%emt 0:00:00]} Qh5 {[%emt 0:00:55]} 18. Nxe4 {[%emt 0:00:00]} fxe4 {[%emt 0:03:12]} 19. h3 {[%emt 0:00:00]} Rg6 {[%emt 0:01:40]} 20. h4 {[%emt 0:00:00]} Qf5 {[%emt 0:02:37]} 21. b4 {[%emt 0:00:00]} Nb6 {[%emt 0:01:53]} 22. a4 {[%emt 0:00:00]} Bd7 {[%emt 0:03:26]} 23. a5 {[%emt 0:00:00]} Nc8 {[%emt 0:01:01]} 24. b5 {[%emt 0:00:00]} Nd6 {[%emt 0:01:18]} 25. Qb3 {[%emt 0:00:00]} dxc4 {[%emt 0:07:15]} 26. Qb4 {[%emt 0:00:00]} Nxb5 {[%emt 0:00:59]} 27. Bxc4 {[%emt 0:00:00]} a6 {[%emt 0:57:09]} 28. Re2 {[%emt 0:00:00]} Rd8 {[%emt 0:00:00]} 29. Rce1 {[%emt 0:00:00]} Bc8 {[%emt 0:00:00]} 30. Rxe4 {[%emt 0:00:00]} Nd6 {[%emt 0:00:00]} 31. Re5 {[%emt 0:00:50]} Qf7 {[%emt 0:00:00]} 32. Bd3 {[%emt 0:02:21]} Nf5 {[%emt 0:00:00]} 33. Bxf5 {[%emt 0:01:03]} exf5 {[%emt 0:00:00]} 34. Re8+ {[%emt 0:00:18]} Rxe8 {[%emt 0:00:00]} 0-1

[Event "Niedersachsen-ch B 2024"]
[Site "Verden Aller"]
[Date "2024.01.04"]
[Round "2.12"]
[White "Lieb, Max"]
[Black "Richter, Silas"]
[Result "0-1"]
[ECO "C11"]
[WhiteElo "1365"]
[BlackElo "1614"]
[Annotator "NA RC"]
[PlyCount "54"]
[EventDate "2024.01.01"]
[EventType "swiss"]
[EventCountry "GER"]
[SourceTitle "playchess.com"]
[Source "ChessBase"]
[SourceQuality "1"]
[TimeControl "40/5400+30:1800+30"]

1. e4 {[%emt 0:00:08]} c5 {[%emt 0:10:48]} 2. Nf3 {[%emt 0:01:03]} Nc6 {[%emt 0:00:06]} 3. d4 {[%emt 0:00:07]} cxd4 {[%emt 0:00:04]} 4. Nxd4 {[%emt 0:00:05]} Nf6 {[%emt 0:00:03]} 5. Nc3 {[%emt 0:00:10]} e6 {[%emt 0:00:04]} 6. Bg5 {[%emt 0:00:10]} Be7 {[%emt 0:00:05]} 7. f4 {[%emt 0:00:13]} d5 {[%emt 0:00:56]} 8. e5 {[%emt 0:01:37]} Nd7 {[%emt 0:00:14]} 9. Bxe7 {[%emt 0:00:34]} Qxe7 {[%emt 0:00:08]} 10. Bb5 {[%emt 0:00:39]} Nxd4 {[%emt 0:00:05]} 11. Qxd4 {[%emt 0:00:18]} O-O {[%emt 0:00:04]} 12. O-O-O {[%emt 0:00:35]} a6 {[%emt 0:00:04]} 13. Bd3 {[%emt 0:02:59]} b5 {[%emt 0:01:31]} 14. f5 {[%emt 0:05:58]} exf5 {[%emt 0:00:31]} 15. Qxd5 {[%emt 0:01:56]} Nb6 {[%emt 0:00:08]} 16. Qd4 {[%emt 0:01:12]} Rb8 {[%emt 0:00:18]} 17. Rhe1 {[%emt 0:02:21]} Rd8 {[%emt 0:00:28]} 18. Qf4 {[%emt 0:04:56]} b4 {[%emt 0:00:46]} 19. Ne2 {[%emt 0:06:31]} g6 {[%emt 0:00:14]} 20. Ng3 {[%emt 0:01:30]} a5 {[%emt 0:00:20]} 21. h4 {[%emt 0:03:37]} a4 {[%emt 0:01:09]} 22. h5 {[%emt 0:00:11]} Be6 {[%emt 0:00:14]} 23. Kb1 {[%emt 0:01:51]} Nd5 {[%emt 0:00:26]} 24. Qf3 {[%emt 0:01:56]} Nc3+ {[%emt 0:00:37]} 25. bxc3 {[%emt 0:00:25]} bxc3+ {[%emt 0:00:11]} 26. Ka1 {[%emt 0:00:15]} Qa3 {[%emt 0:00:01]} 27. Rb1 {[%emt 0:00:54]} Qxa2# {[%emt 0:00:07]} 0-1

[Event "Niedersachsen-ch B 2024"]
[Site "Verden Aller"]
[Date "2024.01.04"]
[Round "2.13"]
[White "Grabowski, Petra"]
[Black "Sanchez Tapia, Luis G."]
[Result "1/2-1/2"]
[ECO "D35"]
[WhiteElo "1600"]
[BlackElo "1576"]
[Annotator "NA RC"]
[PlyCount "29"]
[EventDate "2024.01.01"]
[EventType "swiss"]
[EventCountry "GER"]
[SourceTitle "playchess.com"]
[Source "ChessBase"]
[SourceQuality "1"]
[TimeControl "40/5400+30:1800+30"]

1. d4 {[%emt 0:00:03]} Nf6 {[%emt 0:00:18]} 2. c4 {[%emt 0:00:10]} e6 {[%emt 0:00:12]} 3. Nf3 {[%emt 0:00:28]} d5 {[%emt 0:00:14]} 4. Nc3 {[%emt 0:00:44]} c6 {[%emt 0:00:06]} 5. cxd5 {[%emt 0:01:20]} exd5 {[%emt 0:00:18]} 6. Bg5 {[%emt 0:01:34]} Be7 {[%emt 0:00:23]} 7. e3 {[%emt 0:00:56]} Bf5 {[%emt 0:03:40]} 8. Bd3 {[%emt 0:09:00]} Bxd3 {[%emt 0:00:16]} 9. Qxd3 {[%emt 0:00:08]} O-O {[%emt 0:00:35]} 10. O-O {[%emt 0:01:09]} Nbd7 {[%emt 0:00:56]} 11. a3 {[%emt 0:09:49]} a5 {[%emt 0:01:49]} 12. Rfd1 {[%emt 0:03:50]} h6 {[%emt 0:02:18]} 13. Bh4 {[%emt 0:01:12]} Re8 {[%emt 0:08:28]} 14. h3 {[%emt 0:08:51]} Bd6 {[%emt 0:07:37]} 15. Ne2 {[%emt 0:05:01]} 1/2-1/2

[Event "Niedersachsen-ch B 2024"]
[Site "Verden Aller"]
[Date "2024.01.04"]
[Round "2.18"]
[White "Kesselhut, Pascal"]
[Black "Kewe, Stefan"]
[Result "1-0"]
[ECO "B22"]
[WhiteElo "1425"]
[BlackElo "1737"]
[Annotator "NA RC"]
[PlyCount "55"]
[EventDate "2024.01.01"]
[EventType "swiss"]
[EventCountry "GER"]
[SourceTitle "playchess.com"]
[Source "ChessBase"]
[SourceQuality "1"]
[TimeControl "40/5400+30:1800+30"]

1. e4 {[%emt 0:00:02]} c5 {[%emt 0:00:33]} 2. c3 {[%emt 0:00:09]} d5 {[%emt 0:02:16]} 3. exd5 {[%emt 0:00:24]} Qxd5 4. d4 {[%emt 0:00:17]} cxd4 {[%emt 0:00:14]} 5. cxd4 {[%emt 0:00:14]} Nc6 {[%emt 0:00:29]} 6. Nf3 e5 7. Nc3 {[%emt 0:04:33]} Bb4 {[%emt 0:02:03]} 8. a3 {[%emt 0:01:52]} Bxc3+ {[%emt 0:00:31]} 9. bxc3 {[%emt 0:00:15]} Bg4 {[%emt 0:02:02]} 10. Be2 {[%emt 0:04:03]} exd4 {[%emt 0:04:04]} 11. cxd4 {[%emt 0:03:30]} Nge7 {[%emt 0:02:31]} 12. Bb2 {[%emt 0:03:20]} O-O {[%emt 0:01:47]} 13. O-O {[%emt 0:00:15]} Rad8 {[%emt 0:01:14]} 14. h3 {[%emt 0:02:49]} Be6 15. Qd2 {[%emt 0:02:19]} Qd7 {[%emt 0:05:51]} 16. Rfd1 {[%emt 0:02:51]} Nf5 {[%emt 0:01:51]} 17. Qc3 {[%emt 0:07:55]} b6 {[%emt 0:03:22]} 18. d5 {[%emt 0:05:37]} Bxd5 {[%emt 0:01:21]} 19. g4 {[%emt 0:00:42]} f6 {[%emt 0:03:15]} 20. Rxd5 {[%emt 0:01:09]} Qb7 {[%emt 0:06:27]} 21. Rxd8 {[%emt 0:01:25]} Rxd8 {[%emt 0:00:22]} 22. gxf5 {[%emt 0:01:51]} Kh8 {[%emt 0:00:41]} 23. Rc1 {[%emt 0:01:55]} Ne7 {[%emt 0:03:04]} 24. Qc7 {[%emt 0:03:14]} Qxc7 {[%emt 0:00:53]} 25. Rxc7 {[%emt 0:00:06]} Nd5 {[%emt 0:01:26]} 26. Rc2 {[%emt 0:03:47]} h6 {[%emt 0:00:26]} 27. Rd2 {[%emt 0:01:17]} Re8 {[%emt 0:00:06]} 28. Bb5 {[%emt 0:48:39]} 1-0

[Event "Niedersachsen-ch B 2024"]
[Site "Verden Aller"]
[Date "2024.01.04"]
[Round "2.20"]
[White "Golke, Philipp"]
[Black "Ramme, Georg"]
[Result "1/2-1/2"]
[ECO "B12"]
[WhiteElo "1490"]
[BlackElo "1579"]
[Annotator "NA RC"]
[PlyCount "34"]
[EventDate "2024.01.01"]
[EventType "swiss"]
[EventCountry "GER"]
[SourceTitle "playchess.com"]
[Source "ChessBase"]
[SourceQuality "1"]
[TimeControl "40/5400+30:1800+30"]

1. e4 {[%emt 0:00:03]} c6 {[%emt 0:00:11]} 2. d4 {[%emt 0:00:09]} d5 {[%emt 0:00:06]} 3. e5 {[%emt 0:00:04]} Bf5 {[%emt 0:00:09]} 4. Nf3 {[%emt 0:00:13]} e6 {[%emt 0:00:21]} 5. Bd3 {[%emt 0:00:15]} Bxd3 {[%emt 0:00:10]} 6. Qxd3 {[%emt 0:00:05]} Qb6 {[%emt 0:00:35]} 7. c3 {[%emt 0:00:16]} Nd7 {[%emt 0:02:02]} 8. O-O {[%emt 0:00:17]} Ne7 {[%emt 0:01:56]} 9. b3 {[%emt 0:00:50]} h6 {[%emt 0:03:14]} 10. Ba3 {[%emt 0:00:35]} c5 {[%emt 0:07:47]} 11. Nbd2 {[%emt 0:01:42]} Ng6 {[%emt 0:01:51]} 12. Bb2 {[%emt 0:01:14]} Be7 {[%emt 0:02:54]} 13. Rfe1 {[%emt 0:03:36]} Nf4 {[%emt 0:05:03]} 14. Qe3 {[%emt 0:01:09]} g5 {[%emt 0:03:28]} 15. g3 {[%emt 0:00:18]} Rg8 {[%emt 0:02:04]} 16. Kh1 {[%emt 0:00:26]} Ng6 {[%emt 0:00:31]} 17. Rac1 {[%emt 0:02:59]} Rc8 {[%emt 0:11:50]} 1/2-1/2

[Event "Niedersachsen-ch B 2024"]
[Site "Verden Aller"]
[Date "2024.01.04"]
[Round "2.21"]
[White "Schumacher, Klaus"]
[Black "Bangert, Jonas"]
[Result "1/2-1/2"]
[ECO "D13"]
[WhiteElo "1724"]
[BlackElo "1527"]
[Annotator "NA RC"]
[PlyCount "55"]
[EventDate "2024.01.01"]
[EventType "swiss"]
[EventCountry "GER"]
[SourceTitle "playchess.com"]
[Source "ChessBase"]
[SourceQuality "1"]
[TimeControl "40/5400+30:1800+30"]

1. c4 {[%emt 0:00:03]} c6 {[%emt 0:00:03]} 2. d4 {[%emt 0:00:17]} d5 {[%emt 0:00:09]} 3. cxd5 {[%emt 0:01:04]} cxd5 {[%emt 0:00:05]} 4. Nc3 {[%emt 0:00:22]} Nf6 {[%emt 0:01:10]} 5. Bf4 {[%emt 0:00:39]} a6 {[%emt 0:00:43]} 6. Nf3 {[%emt 0:00:54]} Nc6 {[%emt 0:00:09]} 7. e3 {[%emt 0:00:49]} Bf5 {[%emt 0:00:34]} 8. Bd3 {[%emt 0:01:48]} Bxd3 {[%emt 0:00:13]} 9. Qxd3 {[%emt 0:00:12]} e6 {[%emt 0:00:09]} 10. O-O {[%emt 0:00:49]} Bd6 {[%emt 0:01:09]} 11. Ne5 {[%emt 0:03:16]} Bxe5 {[%emt 0:01:24]} 12. Bxe5 {[%emt 0:00:42]} Nxe5 {[%emt 0:04:29]} 13. dxe5 {[%emt 0:00:09]} Nd7 {[%emt 1:26:43]} 14. f4 {[%emt 0:00:46]} O-O {[%emt 0:00:00]} 15. e4 {[%emt 0:07:29]} Nc5 {[%emt 0:00:00]} 16. Qd4 {[%emt 0:01:49]} Nxe4 {[%emt 0:00:00]} 17. Nxe4 {[%emt 0:00:15]} dxe4 {[%emt 0:00:00]} 18. Qxe4 {[%emt 0:00:40]} Qb6+ {[%emt 0:00:00]} 19. Kh1 {[%emt 0:06:26]} Rfd8 {[%emt 0:00:00]} 20. Qe2 {[%emt 0:06:33]} Rd4 {[%emt 0:00:00]} 21. h3 {[%emt 0:09:42]} g6 {[%emt 0:00:00]} 22. Kh2 {[%emt 0:03:50]} Rad8 {[%emt 0:00:00]} 23. Rad1 {[%emt 0:09:36]} Rxd1 {[%emt 0:00:00]} 24. Rxd1 {[%emt 0:00:10]} Rxd1 {[%emt 0:00:00]} 25. Qxd1 {[%emt 0:00:06]} Qxb2 {[%emt 0:00:00]} 26. Qd8+ {[%emt 0:01:22]} Kg7 {[%emt 0:00:00]} 27. Qf6+ {[%emt 0:00:11]} Kg8 {[%emt 0:00:00]} 28. Qd8+ {[%emt 0:01:03]} 1/2-1/2

[Event "Niedersachsen-ch B 2024"]
[Site "Verden Aller"]
[Date "2024.01.04"]
[Round "2.22"]
[White "Oblender, Rudi"]
[Black "Kraeuter, Paavo Alexander"]
[Result "0-1"]
[ECO "C07"]
[WhiteElo "1511"]
[BlackElo "1832"]
[Annotator "NA RC"]
[PlyCount "88"]
[EventDate "2024.01.01"]
[EventType "swiss"]
[EventCountry "GER"]
[SourceTitle "playchess.com"]
[Source "ChessBase"]
[SourceQuality "1"]
[TimeControl "40/5400+30:1800+30"]

1. e4 {[%emt 0:00:01]} e6 {[%emt 0:00:05]} 2. d4 {[%emt 0:00:03]} d5 {[%emt 0:00:05]} 3. Nc3 {[%emt 0:00:03]} Nf6 {[%emt 0:00:05]} 4. e5 {[%emt 0:00:10]} Nfd7 {[%emt 0:00:04]} 5. Nf3 {[%emt 0:00:09]} c5 {[%emt 0:00:06]} 6. Ne2 {[%emt 0:00:10]} cxd4 7. Nexd4 {[%emt 0:02:16]} Nc6 8. Nxc6 {[%emt 0:00:44]} bxc6 {[%emt 0:02:44]} 9. Bd3 {[%emt 0:00:13]} Ba6 10. O-O {[%emt 0:01:42]} Bxd3 {[%emt 0:01:17]} 11. Qxd3 {[%emt 0:00:40]} Be7 {[%emt 0:03:57]} 12. Re1 {[%emt 0:03:07]} O-O {[%emt 0:00:22]} 13. Nd4 {[%emt 0:01:40]} Qc7 {[%emt 0:05:12]} 14. f4 {[%emt 0:00:37]} Nc5 {[%emt 0:09:15]} 15. Qe2 {[%emt 0:07:54]} Ne4 {[%emt 0:02:38]} 16. Nb3 {[%emt 0:01:15]} a5 {[%emt 0:06:12]} 17. Be3 {[%emt 0:00:25]} a4 {[%emt 0:03:49]} 18. Nd2 {[%emt 0:00:19]} Nxd2 {[%emt 0:02:17]} 19. Qxd2 {[%emt 0:00:44]} Qa5 {[%emt 0:06:37]} 20. Qf2 {[%emt 0:04:36]} a3 {[%emt 0:03:08]} 21. b3 {[%emt 0:09:51]} Bb4 {[%emt 0:08:37]} 22. Red1 {[%emt 0:02:07]} Rac8 {[%emt 0:02:26]} 23. f5 {[%emt 0:09:19]} Bc3 {[%emt 0:02:56]} 24. f6 {[%emt 0:54:25]} Bxa1 {[%emt 0:12:30]} 25. Qg3 {[%emt 0:00:00]} g6 {[%emt 0:00:07]} 26. Qf4 {[%emt 0:00:00]} Bxe5 {[%emt 0:04:26]} 27. Qxe5 {[%emt 0:00:00]} Qb4 {[%emt 0:03:23]} 28. Qg3 {[%emt 0:00:00]} Kh8 {[%emt 0:08:17]} 29. Rd4 {[%emt 0:00:00]} Qc3 {[%emt 0:00:52]} 30. Rh4 {[%emt 0:00:00]} Qa1+ {[%emt 0:01:06]} 31. Kf2 {[%emt 0:00:00]} Qxf6+ {[%emt 0:00:31]} 32. Ke2 {[%emt 0:00:00]} c5 {[%emt 0:03:58]} 33. Bf4 {[%emt 0:00:00]} Qf5 {[%emt 0:00:19]} 34. Rh6 {[%emt 0:00:00]} Qxc2+ {[%emt 0:01:25]} 35. Ke1 {[%emt 0:00:00]} Qb1+ {[%emt 0:00:31]} 36. Ke2 {[%emt 0:00:00]} Qxa2+ {[%emt 0:00:09]} 37. Bd2 {[%emt 0:00:00]} Qb1 {[%emt 0:02:52]} 38. Qh3 {[%emt 0:00:00]} Qe4+ {[%emt 0:00:43]} 39. Kd1 {[%emt 0:00:00]} g5 {[%emt 0:01:38]} 40. Bxg5 {[%emt 0:00:00]} f6 {[%emt 0:01:46]} 41. Rxf6 {[%emt 0:14:55]} Qd4+ {[%emt 0:30:51]} 42. Kc1 {[%emt 0:00:38]} Rxf6 {[%emt 0:00:23]} 43. Bxf6+ {[%emt 0:00:08]} Qxf6 {[%emt 0:00:10]} 44. Kb1 {[%emt 0:00:04]} Qb2# {[%emt 0:00:35]} 0-1

[Event "Niedersachsen-ch B 2024"]
[Site "Verden Aller"]
[Date "2024.01.04"]
[Round "2.23"]
[White "Nordhorn, Horst"]
[Black "Tenninger, Joerg"]
[Result "1/2-1/2"]
[ECO "D00"]
[WhiteElo "1696"]
[BlackElo "1508"]
[Annotator "NA"]
[PlyCount "60"]
[EventDate "2024.01.01"]
[EventType "swiss"]
[EventCountry "GER"]
[SourceTitle "playchess.com"]
[Source "ChessBase"]
[SourceQuality "1"]
[TimeControl "40/5400+30:1800+30"]

1. d4 {[%emt 0:00:02]} d5 {[%emt 0:00:11]} 2. Bf4 {[%emt 0:00:08]} Nf6 {[%emt 0:00:23]} 3. e3 {[%emt 0:00:21]} e6 {[%emt 0:00:25]} 4. Bd3 {[%emt 0:00:21]} Bd6 {[%emt 0:00:35]} 5. Nd2 {[%emt 0:00:51]} O-O {[%emt 0:02:13]} 6. g4 {[%emt 0:00:55]} c5 {[%emt 0:06:35]} 7. Bxd6 {[%emt 0:08:12]} Qxd6 {[%emt 0:00:07]} 8. c3 {[%emt 0:00:14]} cxd4 {[%emt 0:03:26]} 9. cxd4 {[%emt 0:00:34]} e5 {[%emt 0:00:58]} 10. g5 {[%emt 0:00:44]} Nfd7 {[%emt 0:02:08]} 11. Rc1 {[%emt 0:03:18]} exd4 {[%emt 0:01:06]} 12. exd4 {[%emt 0:00:37]} Nc6 {[%emt 0:01:17]} 13. Ngf3 {[%emt 0:01:44]} Re8+ {[%emt 0:03:18]} 14. Kf1 {[%emt 0:00:21]} Nf8 {[%emt 0:01:05]} 15. h3 {[%emt 0:04:00]} Ng6 {[%emt 0:06:02]} 16. Bxg6 {[%emt 0:11:44]} Qxg6 {[%emt 0:01:21]} 17. Qb3 {[%emt 0:01:42]} Qh5 {[%emt 0:07:58]} 18. Kg2 {[%emt 0:04:05]} Nxd4 {[%emt 0:05:58]} 19. Qxd5 {[%emt 0:05:20]} Nxf3 {[%emt 0:00:40]} 20. Nxf3 {[%emt 0:00:22]} Be6 {[%emt 0:05:56]} 21. Qd4 {[%emt 0:06:21]} Red8 {[%emt 0:01:02]} 22. Qe3 {[%emt 0:04:40]} Bd5 {[%emt 0:02:38]} 23. Rc3 {[%emt 0:07:09]} Bxf3+ {[%emt 0:00:55]} 24. Qxf3 {[%emt 0:00:09]} Qxg5+ {[%emt 0:00:13]} 25. Kh2 {[%emt 0:00:50]} Qe5+ {[%emt 0:02:39]} 26. Kg2 {[%emt 0:00:20]} Rd7 {[%emt 0:04:29]} 27. Rhc1 {[%emt 0:03:44]} g6 {[%emt 0:02:43]} 28. Rc8+ {[%emt 0:04:16]} Rxc8 {[%emt 0:00:50]} 29. Rxc8+ {[%emt 0:00:20]} Kg7 {[%emt 0:00:11]} 30. Qc3 {[%emt 0:00:18]} Qxc3 {[%emt 0:38:08]} 1/2-1/2

[Event "Niedersachsen-ch B 2024"]
[Site "Verden Aller"]
[Date "2024.01.04"]
[Round "2.24"]
[White "Warns, Harald"]
[Black "Margaryan, Venera"]
[Result "1/2-1/2"]
[ECO "E00"]
[WhiteElo "1683"]
[BlackElo "1473"]
[Annotator "NA RC"]
[PlyCount "52"]
[EventDate "2024.01.01"]
[EventType "swiss"]
[EventCountry "GER"]
[SourceTitle "playchess.com"]
[Source "ChessBase"]
[SourceQuality "1"]
[TimeControl "40/5400+30:1800+30"]

1. d4 {[%emt 0:00:05]} d5 {[%emt 0:00:06]} 2. e3 {[%emt 0:00:07]} Nf6 {[%emt 0:00:24]} 3. c4 {[%emt 0:00:12]} e6 {[%emt 0:00:07]} 4. a3 {[%emt 0:00:06]} dxc4 {[%emt 0:02:40]} 5. Bxc4 {[%emt 0:00:03]} Nbd7 {[%emt 0:00:53]} 6. Nf3 {[%emt 0:00:28]} b6 {[%emt 0:00:43]} 7. O-O {[%emt 0:00:31]} Bb7 {[%emt 0:00:28]} 8. Nc3 {[%emt 0:00:47]} c5 {[%emt 0:02:15]} 9. dxc5 {[%emt 0:00:40]} Bxc5 {[%emt 0:01:17]} 10. b4 {[%emt 0:00:25]} Be7 {[%emt 0:00:34]} 11. Bb2 {[%emt 0:00:21]} O-O {[%emt 0:00:52]} 12. Qe2 {[%emt 0:02:52]} Rc8 {[%emt 0:02:33]} 13. Bb3 {[%emt 0:03:07]} Bd6 {[%emt 0:02:28]} 14. Rfd1 {[%emt 0:06:34]} Qe7 {[%emt 0:01:22]} 15. Rac1 {[%emt 0:02:24]} Rfd8 {[%emt 0:00:51]} 16. h3 {[%emt 0:02:17]} Ne5 {[%emt 0:01:56]} 17. Nxe5 {[%emt 0:11:02]} Bxe5 {[%emt 0:00:05]} 18. Rxd8+ {[%emt 0:00:10]} Rxd8 {[%emt 0:01:13]} 19. f4 {[%emt 0:12:15]} Bb8 {[%emt 0:03:44]} 20. Rd1 {[%emt 0:06:06]} Rxd1+ {[%emt 0:01:30]} 21. Qxd1 {[%emt 0:00:02]} Qc7 {[%emt 0:05:14]} 22. Nb5 {[%emt 0:02:25]} Qc6 {[%emt 0:04:25]} 23. Qd8+ {[%emt 0:05:30]} Ne8 {[%emt 0:04:07]} 24. e4 {[%emt 0:06:18]} Qc8 {[%emt 0:14:05]} 25. Qxc8 {[%emt 0:00:58]} Bxc8 {[%emt 0:00:06]} 26. e5 {[%emt 0:00:11]} Bb7 {[%emt 0:01:50]} 1/2-1/2

[Event "Niedersachsen-ch B 2024"]
[Site "Verden Aller"]
[Date "2024.01.04"]
[Round "2.25"]
[White "Juergenpott, Maximilian"]
[Black "Knorr, Frank"]
[Result "1-0"]
[ECO "A04"]
[WhiteElo "1660"]
[BlackElo "1411"]
[Annotator "NA"]
[PlyCount "51"]
[EventDate "2024.01.01"]
[EventType "swiss"]
[EventCountry "GER"]
[SourceTitle "playchess.com"]
[Source "ChessBase"]
[SourceQuality "1"]
[TimeControl "40/5400+30:1800+30"]

1. Nf3 {[%emt 0:00:04]} d6 {[%emt 0:00:13]} 2. e3 {[%emt 0:00:12]} Nf6 {[%emt 0:00:10]} 3. c4 {[%emt 0:00:07]} e5 {[%emt 0:00:49]} 4. Nc3 {[%emt 0:00:32]} Nbd7 {[%emt 0:00:23]} 5. Be2 {[%emt 0:00:31]} Be7 {[%emt 0:00:08]} 6. b3 {[%emt 0:01:05]} c6 {[%emt 0:00:09]} 7. Bb2 {[%emt 0:00:12]} O-O {[%emt 0:00:34]} 8. d4 {[%emt 0:00:19]} e4 {[%emt 0:01:29]} 9. Nd2 {[%emt 0:00:15]} d5 {[%emt 0:00:44]} 10. O-O {[%emt 0:00:24]} Re8 {[%emt 0:01:32]} 11. f3 {[%emt 0:02:00]} Bb4 {[%emt 0:01:19]} 12. cxd5 {[%emt 0:02:34]} Bxc3 {[%emt 0:00:29]} 13. Bxc3 {[%emt 0:00:21]} cxd5 {[%emt 0:00:08]} 14. fxe4 {[%emt 0:02:17]} Nxe4 {[%emt 0:00:22]} 15. Nxe4 {[%emt 0:00:19]} Rxe4 {[%emt 0:00:09]} 16. Bd2 {[%emt 0:00:57]} Nf6 {[%emt 0:01:38]} 17. Bd3 {[%emt 0:01:03]} Rg4 {[%emt 0:01:15]} 18. h3 {[%emt 0:05:58]} Rg5 {[%emt 0:04:06]} 19. e4 {[%emt 0:02:37]} Rg6 {[%emt 0:01:57]} 20. exd5 {[%emt 0:01:44]} Rg3 {[%emt 0:02:56]} 21. Bf4 {[%emt 0:03:28]} Rxd3 {[%emt 0:02:27]} 22. Qxd3 {[%emt 0:00:14]} Qxd5 {[%emt 0:00:17]} 23. Be5 {[%emt 0:03:19]} Ne4 {[%emt 0:01:12]} 24. Rae1 {[%emt 0:02:24]} Nc3 {[%emt 0:02:21]} 25. Qxc3 {[%emt 0:04:26]} Be6 {[%emt 0:01:37]} 26. Qg3 {[%emt 0:01:05]} 1-0